Cogmind - Beta 17 @@@ ROGUE MODE // 2026.08.23 @ 03:34:47 Player: Foongus0298 Result: Self-destructed Performance ------------- Evolutions (2) 1000 Regions Visited (3) 600 Robots Destroyed (0) 0 Value Destroyed (0) 0 Prototype IDs (1) 20 Alien Tech Used (0) 0 Bonus (470) 470 TOTAL SCORE: 2090 Bonus ------- Pacifist 470 Cogmind --------- Core Integrity 507/550 Matter 54/300 Energy 252/275 System Corruption 4% Temperature Cool (49) Movement Flying (27) Location -8/Materials Parts ------- > --- POWER (2) -------- Deuterium Engine > --- PROPULSION (5) --- Cesium-ion Thruster Xenon Bombardment Thruster Xenon Bombardment Thruster Xenon Bombardment Thruster Xenon Bombardment Thruster > --- UTILITY (2) ------ Improved Signal Interpreter > --- WEAPON (2) ------- (None) > --- INVENTORY (5) ---- Improved Flight Unit Improved Flight Unit Improved Light Armor Plating Peak State ------------ > --- POWER ------------ Deuterium Engine > --- PROPULSION ------- Improved Flight Unit Xenon Bombardment Thruster Xenon Bombardment Thruster Xenon Bombardment Thruster Xenon Bombardment Thruster > --- UTILITY ---------- Improved Signal Interpreter > --- WEAPON ----------- (None) > --- INVENTORY -------- Improved Flight Unit Cesium-ion Thruster Improved Light Armor Plating [Rating: 25] Favorites ----------- Power Light Ion Engine Engine Light Ion Engine Propulsion Improved Hover Unit Hover Unit Improved Hover Unit Flight Unit Improved Flight Unit Utility Medium Armor Plating Processor Improved Signal Interpreter Protection Medium Armor Plating Weapon None Build | -11 -10 -9 -8 ------- Run | Yrd Mat Mat Mat Slots Evolved 4 | . . 2 2 Power 1 | . . . 1 Propulsion 3 | . . 2 1 Utility . | . . . . Weapon . | . . . . Parts Attached 25 | 1 . 13 11 Power 3 | 1 . 1 1 Engine 3 | 1 . 1 1 Core . | . . . . Reactor . | . . . . Propulsion 20 | . . 11 9 Treads . | . . . . Leg . | . . . . Wheel . | . . . . Hover 9 | . . 9 . Flight 11 | . . 2 9 Utility 2 | . . 1 1 Device . | . . . . Storage . | . . . . Processor 1 | . . . 1 Hackware . | . . . . Protection 1 | . . 1 . Artifact . | . . . . Weapon . | . . . . Energy Gun . | . . . . Energy Cannon . | . . . . Ballistic Gun . | . . . . Ballistic Cannon . | . . . . Launcher . | . . . . Special Weapon . | . . . . Impact Weapon . | . . . . Slashing Weapon . | . . . . Piercing Weapon . | . . . . Special Melee Weapon . | . . . . Unidentified Prototypes 1 | . . . 1 Parts Lost 13 | . . 13 . Power 2 | . . 2 . Propulsion 10 | . . 10 . Utility 1 | . . 1 . Weapon . | . . . . Highest Loss Streak 7 | . . 7 . To Critical Strikes . | . . . . Average Backups 1 | . . 1 . Power . | . . . . Propulsion . | . . 1 . Utility . | . . . . Weapon . | . . . . Tool/Special . | . . . . Unused Backups 1 | . . . 1 Power . | . . . . Propulsion . | . . . . Utility 1 | . . . 1 Weapon . | . . . . Tool/Special . | . . . . Average Slot Usage (%) 32 | . 14 34 33 Engine 6 | . 14 5 6 Hover 13 | . . 21 . Flight 8 | . . 4 21 Processor 1 | . . . 5 Protection 2 | . . 3 . Peak Build Rating 25 | 1 1 11 25 Average Rating 7 | . 1 5 13 On Entrance . | . 1 1 . Avg Prop Armor Cover (%) 26 | . . 27 9 Naked Turns 11 | . . 5 6 Heaviest Build 10 | 3 3 10 9 Greatest Support 29 | 3 3 28 29 Greatest Overweight (x) . | . . . . Average Overweight (x) . | . . . . Largest Inventory Capacity 5 | 5 5 5 5 Average Capacity 5 | 5 5 5 5 Most Carried 4 | . . 4 3 Average Carried 1 | . . 1 . Final Capacity 5 | 5 5 5 5 Final Carried 3 | . . . 3 Class Distribution -------------------- 93% | Mutant 6% | Sprinter Dominant Class ---------------- Mutant | -10/Materials Mutant | -9/Materials Mutant | -8/Materials Resources | -11 -10 -9 -8 ----------- Run | Yrd Mat Mat Mat Matter Collected 163 | 49 . 21 93 Remotely . | . . . . Salvage Created . | . . . . Parts . | . . . . Haulers Intercepted . | . . . . Recyclers Shooed . | . . . . Parts Field Recycled . | . . . . Retrieved Matter . | . . . . Parts Self-Destructed . | . . . . Prevented . | . . . . Parts Restored . | . . . . Kills | -11 -10 -9 -8 ------- Run | Yrd Mat Mat Mat Combat Hostiles Destroyed . | . . . . Classes Destroyed . | . . . . Best Kill Streak . | . . . . Combat Bots Only . | . . . . Max Kills in Single Turn . | . . . . Gunslinging . | . . . . Exploded . | . . . . Melee . | . . . . Uniques/NPCs Destroyed . | . . . . Combat | -11 -10 -9 -8 -------- Run | Yrd Mat Mat Mat Hostile Shots Fired 209 | . . 193 16 Missed 89 | . . 81 8 Hits 120 | . . 112 8 Projectile 120 | . . 112 8 Critical Strikes 1 | . . 1 . Damage Taken 1015 | . 2 893 120 Core 353 | . 2 308 43 Absorbed by Shields . | . . . . Core Remaining (%) 74 | 100 99 23 . Volleys Fired . | . . . . Largest . | . . . . Hottest . | . . . . Shots Fired . | . . . . Gun . | . . . . Cannon . | . . . . Launcher . | . . . . Special . | . . . . Kinetic . | . . . . Thermal . | . . . . Explosive . | . . . . Electromagnetic . | . . . . Robot Hit Streak . | . . . . Robot Miss Streak . | . . . . Penetration Max . | . . . . Secondary Targets . | . . . . Shots Hit Robots . | . . . . Core Hits . | . . . . Critical Kills . | . . . . Critical Parts Destroyed . | . . . . Critical Strikes . | . . . . Melee Attacks . | . . . . Impact . | . . . . Slashing . | . . . . Piercing . | . . . . Sneak Attacks . | . . . . Combat Hostiles . | . . . . Follow-up Attacks . | . . . . Damage Inflicted 4 | . 4 . . Guns . | . . . . Cannons . | . . . . Explosions . | . . . . Melee . | . . . . Ramming 4 | . 4 . . Kinetic . | . . . . Thermal . | . . . . Explosive . | . . . . Electromagnetic . | . . . . Impact . | . . . . Slashing . | . . . . Piercing . | . . . . Highest Corruption 4 | . . . 4 Average Corruption 4 | . . . 4 Corruption Purged . | . . . . Corruption Blocked . | . . . . Effects 2 | . . . 2 Matter Fused 1 | . . . 1 Energy Discharges 1 | . . . 1 Overload Shots . | . . . . Overflow Damage . | . . . . Projectiles . | . . . . Explosions . | . . . . Melee . | . . . . Knockbacks . | . . . . Impact . | . . . . Kinetic . | . . . . Secondary . | . . . . Self-Inflicted Damage 2 | . 2 . . Shots . | . . . . Rammed 1 | . 1 . . Targets Rammed 1 | . 1 . . Kicked . | . . . . Crushed . | . . . . Highest Temperature 40 | . . . 40 Average Temperature 16 | . . . 16 Received Heat Transfer 54 | . . . 54 Siege Activations . | . . . . Martial Activations . | . . . . Shielding Activations . | . . . . Robots Disrupted . | . . . . Combat Hostiles . | . . . . Robots Corrupted . | . . . . Combat Hostiles . | . . . . Parts Fried . | . . . . Impact Corruptions . | . . . . Robots Melted . | . . . . Combat Hostiles . | . . . . Parts Melted . | . . . . Heat Transferred . | . . . . Parts Sabotaged . | . . . . Parts Stolen . | . . . . Parts Stripped . | . . . . Power Chain Reactions . | . . . . Alert | -11 -10 -9 -8 ------- Run | Yrd Mat Mat Mat Maximum Alert Level . | . . . . Low Security (%) 100 | 100 100 100 100 Level 1 . | . . . . Level 2 . | . . . . Level 3 . | . . . . Level 4 . | . . . . Level 5 . | . . . . High Security . | . . . . Max Security . | . . . . Peak Influence 110 | . . 110 52 Initial 52 | . . . 52 Average 27 | . . 28 33 Influence Increases 255 | . . 255 . Partial Spotted 15 | . . 15 . Lose Combat Pursuer 240 | . . 240 . Influence Decreases 243 | . . 130 113 Entered New Map 73 | . . . 73 Time Decay 100 | . . 60 40 Lost Part 70 | . . 70 . Squads Dispatched 2 | . . 1 1 Investigation 1 | . . . 1 Extermination . | . . . . Reinforcement 1 | . . 1 . Assault . | . . . . Garrison . | . . . . Intercept . | . . . . Searches Triggered . | . . . . Construction Impeded . | . . . . Haulers Reinforced . | . . . . Active Scanning Responses . | . . . . Cargo Convoy Interrupts . | . . . . Stealth | -11 -10 -9 -8 --------- Run | Yrd Mat Mat Mat Distress Signals 2 | . . 1 1 Communications Jammed . | . . . . Distress Signals . | . . . . Times Spotted 43 | . . 27 16 Peak Tracking Total 16 | . . 11 16 Tactical Retreats 6 | . . 6 . Traps | -11 -10 -9 -8 ------- Run | Yrd Mat Mat Mat Traps Triggered . | . . . . Indirectly . | . . . . Trap Hack Attempts . | . . . . Triggered . | . . . . Disarmed . | . . . . Reprogrammed . | . . . . Reused . | . . . . Traps Extracted . | . . . . Installed . | . . . . Triggered . | . . . . Machines | -11 -10 -9 -8 ---------- Run | Yrd Mat Mat Mat Machines Disabled . | . . . . Max in Single Turn . | . . . . Machines Repaired . | . . . . Machines Dismantled . | . . . . Machines Sabotaged . | . . . . Overloaded Fab Kills . | . . . . Hacking | -11 -10 -9 -8 --------- Run | Yrd Mat Mat Mat Machines Accessed 1 | . . . 1 Terminals 1 | . . . 1 Fabricators . | . . . . Repair Stations . | . . . . Recycling Units . | . . . . Scanalyzers . | . . . . Garrison Access . | . . . . Total Hacks 2 | . . . 2 Successful . | . . . . Failed 2 | . . . 2 Catastrophic 2 | . . . 2 Database Lockouts . | . . . . Manual 2 | . . . 2 Terminals 2 | . . . 2 Fabricators . | . . . . Repair Stations . | . . . . Recycling Units . | . . . . Scanalyzers . | . . . . Garrison Access . | . . . . Terminal Hacks . | . . . . Fabricator Hacks . | . . . . Repair Station Hacks . | . . . . Recycling Unit Hacks . | . . . . Scanalyzer . | . . . . Garrison Access Hacks . | . . . . Unauthorized Hacks . | . . . . Terminals . | . . . . Fabricators . | . . . . Repair Stations . | . . . . Recycling Units . | . . . . Scanalyzers . | . . . . Garrison Access . | . . . . Data Cores Recovered . | . . . . Used . | . . . . Hacking Detections 1 | . . . 1 Full Trace Events 1 | . . . 1 Feedback Events . | . . . . Feedback Blocked . | . . . . Robot Schematics Acquired . | . . . . Robots Built . | . . . . Authchips . | . . . . Time . | . . . . Total Robot Build Rating . | . . . . Part Schematics Acquired . | . . . . Parts Built . | . . . . Authchips . | . . . . Time . | . . . . Total Part Build Rating . | . . . . Part Studies Acquired . | . . . . Parts Repaired . | . . . . Time . | . . . . Parts Recycled . | . . . . Recycled Matter . | . . . . Retrieved Matter . | . . . . Retrieved Components . | . . . . Parts Scanalyzed . | . . . . Part Schematics Acquired . | . . . . Parts Damaged . | . . . . Bothacking | -11 -10 -9 -8 ------------ Run | Yrd Mat Mat Mat Used RIF Installer . | . . . . Robots Hacked . | . . . . Non-combat . | . . . . Combat . | . . . . Robot Hacks Applied . | . . . . Relay Couplers Released . | . . . . Fabnet Peak Effective % . | . . . . Robots Rewired . | . . . . Allies Hacked . | . . . . Hacks Repelled . | . . . . Allies | -11 -10 -9 -8 -------- Run | Yrd Mat Mat Mat Total Allies . | . . . . Largest Group . | . . . . Highest-Rated Group . | . . . . Highest-Rated Ally . | . . . . Total Orders . | . . . . Ally Attacks . | . . . . Total Damage . | . . . . Kills . | . . . . Allies Corrupted . | . . . . Allies Melted . | . . . . Intel | -11 -10 -9 -8 ------- Run | Yrd Mat Mat Mat Active Infowar (turns) . | . . . . Robot Analysis Total . | . . . . Derelict Logs Recovered . | . . . . Drone Launches . | . . . . Drone Recoveries . | . . . . Exploration | -11 -10 -9 -8 ------------- Run | Yrd Mat Mat Mat Turns Passed 334 | 11 25 208 90 Spaces Moved 664 | 20 47 393 204 Core 129 | 20 47 52 10 Treads . | . . . . Legs . | . . . . Wheels . | . . . . Hover 190 | . . 190 . Flight 345 | . . 151 194 Fastest Speed 27 | 50 50 37 27 Average Speed 43 | 50 50 47 34 Slowest Speed 60 | 50 50 60 50 Overloaded Moves . | . . . . Propulsion Burnouts . | . . . . Robots Hopped 15 | . . 8 7 Potential Cave-ins . | . . . . Cave-ins Triggered . | . . . . Exploration Rate (%) 22 | 3 18 43 27 Regions Visited 3 Branch Regions . Pre-discovered Areas . | . . . . Known Exits Taken . | . . . . Unknown Exits Taken 3 | 1 1 1 . Scrap Searched . | . . . . Spaces Dug . | . . . . Terrain Destroyed . | . . . . Melee . | . . . . Projectile . | . . . . AOE . | . . . . Terrain Rammed . | . . . . Walls Destroyed . | . . . . Machines Disabled . | . . . . Actions | -11 -10 -9 -8 --------- Run | Yrd Mat Mat Mat Total 681 | 20 47 402 212 Wait . | . . . . Move 635 | 19 46 379 191 Hop 11 | . . 5 6 Pick Up 5 | . . 4 1 Fast Attach 18 | 1 . 8 9 Attach 4 | . . 4 . Detach . | . . . . Swap 5 | . . 2 3 Drop 2 | . . . 2 Fire . | . . . . Melee . | . . . . Ram 1 | . 1 . . Kick . | . . . . Crush . | . . . . Escape Stasis . | . . . . Rewire . | . . . . Trap . | . . . . Miscellaneous . | . . . . Route ------- -11/Scrapyard -10/Materials -9/Materials (discovered 2 exits: *Mat / [*Min]) -8/Materials History --------- Turn | Location | Event 5 | -11/Scrapyard | Discovered new exit (range 15) 12 | -11/Scrapyard | Entered Materials 29 | -10/Materials | Discovered new exit (range 14) 37 | -10/Materials | Entered another Materials area 37 | -9/Materials | Evolved 2 slots: Propulsion x2 157 | -9/Materials | Discovered new exit (range 6) 171 | -9/Materials | Lost 7 parts (1p6n) 187 | -9/Materials | Core integrity fell below 50% 238 | -9/Materials | Discovered new exit (range 16) 245 | -9/Materials | Entered another Materials area 245 | -8/Materials | Evolved 2 slots: Power x1, Propulsion x1 271 | -8/Materials | Lost 6 parts (1p4n1u) 335 | -8/Materials | Self-destructed Last Messages --------------- 00256_ Acquired Imp. Flight Unit. 00258_ Dropped Faulty Imp. Flight Unit. 00264_ Acquired Deuterium Engine. 00273_ Acquired Imp. Signal Interpreter. 00278_ Acquired Imp. Light Armor Plating. 00283_ T-07 Excavator is excavating. 00293_ O-24 Administrator: "IFF HANDSHAKE FAILED. SECURING TERMINAL." 00294_ Acquired Cesium-ion Thruster. 00299_ Connecting with Terminal... 00299_ Current location identified: Materials 00299_ ALERT: Suspicious activity at Terminal M012. Dispatching Investigation squad. 00304_ System corrupted: Energy discharge (-63). 00316_ Acquired Xenon Bombardment Thruster. 00327_ W-25 Informer sends out distress signal. 00329_ C-30 ARC bursts open, deploying its payload. 00329_ G-50 Soldier unfolds itself. 00329_ G-47 Trooper unfolds itself. Map ----- +----------------------------------------------------+ | ?????????????????????????????????????????????????? | | ?????????????????????????????????????????????????? | | ?????????????????????????????????????????????????? | | ?????????????????????????????????????????????????? | | ?????????????????????????????????????????????????? | | ?????????????????????????????????????????????????? | | ?????????????????????????????????????????????????? | | ?????????????????????????????????????????????????? | | ?????????????????????????????????????????????????? | | ?????????????????????????????????????????????????? | | ?????????????????????????????????????????????????? | | ?????????????????????????????????????????????????? | | ?????????????????????????????????????????????? ??? | | ??????????????????????????????????????????????"??? | | ???????????????????????????????????????##????? ??? | | ?????????????????????????????????????? |#????? ??? | | ????????????????????????????????????? #????? ??? | | ???????????????????????????????#??""" #????? ??? | | ???????????????????????????????# """"" #????# ### | | ???????????????????????????????# """"" *#????# | | ???????????????????????????????# """"" #????# | | ???????????????????????????????# """ #????# " | | ???????????????????????????????? #????+ " | | ????????????????????????????###??? ??????# " | | ?????????????????###T# ######T######+######### | | ?????????????#k w a@g g | | ?????????????+ g ########/### | | ?????????????# o w ^u #????# | | ?????????????# ###+#############+#;##????# | | ?????????????#?????????????????? ??????# ! | | ?????????????????????????????? #????# | | ????????????????????????????# #????# ! | | ????????????????????????????# ! #????#[ | | ????????????????????????????# #????######+ | | ????????????????????????????# """ """ #?????????# | | ????????????????????????????# """ """ #?????????# | | ????????????????????????????# """ """ #?????????# | | ????????????????????????????#??########??????##### | | ?????????????????????????????????????????????? | | ?????????????????????????????????????????????? """ | | ???????????????????????????????????????????????""" | | ??????????????????????????????####?????????????""" | | ?????????????????????????????##! #?????????????? | | ?????????????????????????????#! #?????????????? | | ?????????????????????????????#! ################+ | | ?????????????????????????????#! | | ?????????????????????????????#! ################ | | ?????????????????????????????##! #?#! =! #?????# | | ??????????????????????????????####?# ! #?????# | | ???????????????????????????????????#"S #?????# | +----------------------------------------------------+ Best States ------------- Heat Dissipation 31 Energy Generation 14 Energy Capacity 275 Matter Stores 143 Matter Capacity 300 Sight Range 16 Terrain Scan Density 10 Armor Coverage 225 Evasion (%) 64 Item Schematics ----------------- None Robot Schematics ------------------ None Fabricated ------------ Nothing Repaired ---------- Nothing Studied --------- None Alien Tech Used ----------------- None Achievements -------------- None Challenges ------------ None Game ------ Seed WeightMultitargetingLoader Manual? 0 Play Time 00:09:29 Cumulative 148.9 hours Start 2026.08.23 @ 03:27:39 End 2026.08.23 @ 03:34:47 Sessions 1 Manual Loads 0 Difficulty Rogue Special Mode None Game No. 95 Rogue 95 Adventurer 0 Explorer 0 Win Type - Total 3 Types 2/0/0/1/0/0/0/0/0/0 Lore% 60 Gallery% 58 Achievement% 50 Wizard Run 0 Options --------- Layout 1 ASCII 0 Keyboard 0 Movement Mouse Keybinds 0 Fullscreen 1 Font 24/Smallcaps Map View 50x35 Zoom Use 0% Tactical HUD 1 Map Filters NONE Filters NONE Steam 1 RUN: 14eb2752-fa1e-47e6-9d14-d1cc3d96997a